[Event "III Menorca Open-A 2024"]
[Site "Ciutadella Menorca"]
[Date "2024.04.04"]
[Round "4.11"]
[White "Warmerdam, Max"]
[Black "Nogerbek, Kazybek"]
[Result "1-0"]
[ECO "C85"]
[WhiteElo "2628"]
[BlackElo "2489"]
[Annotator "TA"]
[PlyCount "117"]
[EventDate "2024.04.02"]
[EventType "swiss"]
[EventCountry "ESP"]
[SourceTitle "playchess.com"]
[Source "ChessBase"]
[SourceQuality "1"]
[TimeControl "5400+30"]

{[%evp 43,117,4,22,10,43,58,52,32,77,66,84,81,82,65,89,81,148,151,162,142,138,142,143,125,220,176,202,199,197,204,267,199,205,209,211,209,193,195,201,196,283,281,284,259,274,272,350,359,367,345,522,338,547,393,487,472,575,571,556,413,676,679,779,906,1686,1487,1714,1774,4939,2717,5118,5118,29990,29991,29991,29992]} 1. e4 {[%emt 0:00:04]} e5 {[%emt 0:01:04]} 2. Nf3 {[%emt 0:00:18]} Nc6 {[%emt 0:00:24]} 3. Bb5 {[%emt 0:00:04]} a6 {[%emt 0:00:45]} 4. Ba4 {[%emt 0:00:05]} Nf6 {[%emt 0:00:13]} 5. O-O {[%emt 0:00:07]} Be7 {[%emt 0:00:19]} 6. Bxc6 dxc6 {[%emt 0:00:20]} 7. d3 {[%emt 0:00:12]} Nd7 {[%emt 0:01:18]} 8. Be3 {[%emt 0:00:44] C85: Closed Ruy Lopez: Deferred Exchange Variation.} O-O {[%emt 0:01:26]} 9. Nc3 {[%emt 0:00:06]} Re8 {[%emt 0:01:31]} 10. a4 {[%emt 0:00:41]} a5 {[%emt 0:01:54]} 11. Ne2 {[%emt 0:00:51]} Bd6 {[%emt 0:01:07]} 12. Nd2 {[%emt 0:00:40]} Nf8 {[%emt 0:01:05]} 13. Nc4 {[%emt 0:05:40]} Ng6 {[%emt 0:01:56]} 14. b3 $146 {[%emt 0:14:31]} ({Predecessor:} 14. Qe1 b6 15. Nxd6 cxd6 16. f4 f5 17. exf5 Bxf5 18. fxe5 Bg4 19. Nf4 Nxe5 20. Qg3 {½-½ Abdusattorov,N (2716)-Sindarov,J (2658) FIDE Grand Swiss 2023 (10)}) 14... Be6 {[%emt 0:04:30]} 15. Nxd6 {[%emt 0:01:19]} cxd6 {[%emt 0:00:43]} 16. f4 {[%emt 0:06:54]} exf4 {[%emt 0:00:43]} 17. Nxf4 {[%emt 0:00:05]} d5 {[%emt 0:10:12]} 18. exd5 {[%emt 0:01:28]} Bxd5 {[%emt 0:03:17]} 19. Nxd5 {[%emt 0:00:44]} Qxd5 {[%emt 0:00:14]} 20. Qd2 {[%emt 0:03:36]} c5 {[%emt 0:04:02]} 21. c4 {[%emt 0:04:02]} Qd6 {[%emt 0:04:13]} 22. Qf2 {[%emt 0:05:38]} f6 {[%emt 0:02:51]} 23. Rad1 {[%emt 0:02:06]} Re5 {[%emt 0:09:38]} 24. d4 {[%emt 0:01:47]} cxd4 {[%emt 0:00:32]} 25. Bxd4 {[%emt 0:00:38]} Rh5 {[%emt 0:01:08]} 26. h3 {[%emt 0:01:19]} Qc6 {[%emt 0:01:30]} 27. Bc3 {[%emt 0:05:32]} Re8 {[%emt 0:09:08]} 28. Rd2 {[%emt 0:02:20]} Qe4 {[%emt 0:02:17]} 29. Rd7 {[%emt 0:09:07]} (29. Rd4 {simplifies} Qc6 30. Rfd1 Rg5 31. Rd5) 29... Qe3 {[%emt 0:09:33] [#]} (29... Ne5 $142 30. Re1 Qc6 (30... Nxd7 $2 {loses.} 31. Rxe4 Rxe4 32. Qf3 $18)) 30. Re1 $1 $16 {[%emt 0:06:22]} Qxf2+ {[%emt 0:01:13]} 31. Kxf2 {[%emt 0:00:07]} Rb8 {[%emt 0:01:59]} 32. Re3 {[%emt 0:11:37]} Rg5 {[%emt 0:05:36]} 33. Red3 {[%emt 0:07:23]} Re8 {[%emt 0:10:23]} (33... Nf4 $16) 34. R3d5 {[%emt 0:05:27]} Rxd5 {[%emt 0:05:03]} 35. Rxd5 {[%emt 0:00:20]} ({But not} 35. cxd5 b5 $16) 35... Nf4 {[%emt 0:00:35]} 36. Rxa5 {[%emt 0:00:40]} Kf7 {[%emt 0:00:06]} 37. Rb5 {[%emt 0:00:35]} Re7 {[%emt 0:00:05]} 38. Kf3 {[%emt 0:01:19]} Ne6 {[%emt 0:00:13]} 39. h4 {[%emt 0:00:22]} Rd7 {[%emt 0:00:54]} 40. Ke3 {[%emt 0:00:13]} Rc7 {[%emt 0:02:04]} 41. g3 {[%emt 0:01:11]} g6 {[%emt 0:00:31]} (41... Ke8 $142 42. a5 Kd8) 42. g4 {[%emt 0:00:35]} Nc5 {[%emt 0:01:01]} 43. Bd4 {[%emt 0:00:22]} Re7+ {[%emt 0:00:10]} 44. Kf3 {[%emt 0:00:06]} Ne4 {[%emt 0:00:20]} 45. Be3 {[%emt 0:02:13]} Nd6 {[%emt 0:02:22]} 46. Rd5 {[%emt 0:00:13]} Ne8 {[%emt 0:00:07]} (46... Re6 {might work better.} 47. Bc5 Ne4) 47. a5 {[%emt 0:00:27]} Ng7 $2 {[%emt 0:00:34]} (47... Nc7 {keeps fighting.}) 48. Bd4 {[%emt 0:00:49]} h5 {[%emt 0:00:17]} 49. gxh5 {[%emt 0:00:48]} gxh5 {[%emt 0:00:30]} 50. b4 {[%emt 0:00:24]} Rc7 {[%emt 0:02:26]} 51. Rb5 {[%emt 0:01:08]} Kg6 {[%emt 0:00:27]} (51... Rd7 $142 52. Ke4 Re7+ 53. Kd3 Ne6) 52. Rb6 $18 {[%emt 0:00:27]} Ne8 {[%emt 0:00:55]} 53. c5 {[%emt 0:00:23]} Kf5 {[%emt 0:00:19]} 54. b5 {[%emt 0:00:25]} Rd7 {[%emt 0:00:06]} 55. Be3 {[%emt 0:00:21]} Ng7 {[%emt 0:00:02]} 56. a6 {[%emt 0:00:30]} bxa6 {[%emt 0:00:05]} 57. c6 {[%emt 0:00:11]} Rd3 {[%emt 0:00:37]} 58. c7 {[%emt 0:00:08]} Rc3 {[%emt 0:00:05]} 59. Rc6 {[%emt 0:00:07]} 1-0

[Event "III Menorca Open-A 2024"]
[Site "Ciutadella Menorca"]
[Date "2024.04.04"]
[Round "4.12"]
[White "Xiao, Tong(Qd)"]
[Black "Murzin, Volodar"]
[Result "1/2-1/2"]
[ECO "B90"]
[WhiteElo "2484"]
[BlackElo "2632"]
[Annotator "TA"]
[PlyCount "47"]
[EventDate "2024.04.02"]
[EventType "swiss"]
[EventCountry "ESP"]
[SourceTitle "playchess.com"]
[Source "ChessBase"]
[SourceQuality "1"]
[TimeControl "5400+30"]

{[%evp 9,47,19,20,2,12,0,0,-17,0,-23,-28,-36,-18,-21,-17,-20,-12,-11,0,-9,0,-7,0,-4,0,0,0,0,0,0,8,1,56,59,27,0,0,0,46,0]} 1. e4 {[%emt 0:00:03]} c5 {[%emt 0:02:37]} 2. Nf3 {[%emt 0:00:06]} d6 {[%emt 0:00:05]} 3. d4 cxd4 {[%emt 0:00:05]} 4. Nxd4 {[%emt 0:00:08]} Nf6 {[%emt 0:00:05]} 5. Nc3 {[%emt 0:00:04]} a6 {[%emt 0:00:05]} 6. Qd3 {[%emt 0:02:10]} Nbd7 {[%emt 0:00:40]} 7. a4 {[%emt 0:01:09]} b6 {[%emt 0:07:08]} 8. Bg5 {[%emt 0:06:25] The position is equal.} Bb7 {[%emt 0:03:04]} 9. f3 {[%emt 0:10:33]} e6 {[%emt 0:03:51]} 10. Be2 {[%emt 0:05:19]} Be7 {[%emt 0:03:21]} 11. Qd2 {[%emt 0:02:50]} O-O {[%emt 0:06:53]} 12. O-O {[%emt 0:00:49]} Rc8 {[%emt 0:10:48]} 13. Rfd1 {[%emt 0:01:11]} Ne5 {[%emt 0:07:42]} 14. Nb3 {[%emt 0:10:45]} Rc6 {[%emt 0:06:50]} 15. Kh1 {[%emt 0:08:13]} Qc8 {[%emt 0:17:02]} 16. Qe1 {[%emt 0:09:05]} Nc4 {[%emt 0:05:41]} 17. Bxc4 {[%emt 0:00:14]} Rxc4 {[%emt 0:00:01]} 18. Rd3 {[%emt 0:02:56]} h6 {[%emt 0:06:12]} 19. Bh4 {[%emt 0:03:53]} Qc7 {[%emt 0:02:41]} 20. Rad1 {[%emt 0:01:57]} Rd8 {[%emt 0:00:25]} ({Better is} 20... Rc6 $11) 21. Nd2 $14 {[%emt 0:03:41]} Rc6 {[%emt 0:05:33]} 22. Nb3 {[%emt 0:01:05]} Rc4 {[%emt 0:03:14]} 23. Nd2 {[%emt 0:00:05]} (23. Nd4 $11) 23... Rc6 {[%emt 0:00:03]} 24. Nb3 {[%emt 0:00:04] Weighted Error Value: White=0.06 (flawless) /Black=0.07 (flawless) .  Mistake:       	White=2     	Black=1      Inaccurate:     	White=1     	---        OK:         	White=8     	Black=6      Best:        	White=1     	Black=1} (24. Nf1 $14) 1/2-1/2

[Event "III Menorca Open-A 2024"]
[Site "Ciutadella Menorca"]
[Date "2024.04.04"]
[Round "4.13"]
[White "Aryan Chopra"]
[Black "Girel, Joseph"]
[Result "1-0"]
[ECO "D77"]
[WhiteElo "2630"]
[BlackElo "2479"]
[Annotator "TA"]
[PlyCount "101"]
[EventDate "2024.04.02"]
[EventType "swiss"]
[EventCountry "ESP"]
[SourceTitle "playchess.com"]
[Source "ChessBase"]
[SourceQuality "1"]
[TimeControl "5400+30"]

{[%evp 27,101,27,28,26,24,22,23,17,16,15,18,10,8,8,18,0,6,0,0,0,3,2,9,8,25,17,19,14,12,7,1,8,15,25,23,5,10,6,21,15,14,3,9,12,8,8,8,11,31,23,24,18,72,60,95,85,272,50,50,62,405,360,410,388,733,692,794,964,810,1057,974,871,1269,1068,6302,5658]} 1. d4 {[%emt 0:00:04]} Nf6 {[%emt 0:00:46]} 2. Nf3 {[%emt 0:00:05]} d5 {[%emt 0:00:55]} 3. g3 {[%emt 0:00:07]} g6 {[%emt 0:03:28]} 4. Bg2 {[%emt 0:00:19]} Bg7 {[%emt 0:00:06]} 5. O-O {[%emt 0:00:23]} O-O {[%emt 0:00:09]} 6. c4 dxc4 {[%emt 0:00:24]} 7. Na3 {[%emt 0:00:33]} c5 {[%emt 0:00:29] is the new trend.} 8. Nxc4 {[%emt 0:06:53]} Be6 {[%emt 0:00:23]} 9. b3 {[%emt 0:10:48]} cxd4 {[%emt 0:11:16] D77: Fianchetto Grünfeld: 6 0-0: Replies other than 6...c6.} 10. Nxd4 {[%emt 0:00:12]} Bd5 {[%emt 0:00:29]} 11. Bb2 {[%emt 0:03:01]} Bxg2 {[%emt 0:02:23]} 12. Kxg2 {[%emt 0:00:04]} Qd5+ {[%emt 0:01:14]} 13. f3 {[%emt 0:08:22]} Nc6 $146 {[%emt 0:03:13]} ({Predecessor:} 13... Rd8 14. e4 Qc5 15. Ne6 Rxd1 16. Nxc5 Rxa1 17. Rxa1 b6 18. Rd1 Nc6 19. Na6 Rd8 20. Rxd8+ Nxd8 {½-½ Gouloutis,N (2353)-Skaperdas,K (2231) GRE-ch 68th Thessaloniki 2018 (5)}) 14. e4 {[%emt 0:01:26]} Qc5 {[%emt 0:10:13]} 15. Nxc6 {[%emt 0:09:01]} Qxc6 {[%emt 0:00:26]} 16. Qe2 {[%emt 0:00:12]} Rfd8 {[%emt 0:04:58]} 17. Rac1 {[%emt 0:02:05]} Qe6 {[%emt 0:03:03]} 18. Rfd1 {[%emt 0:07:30]} h5 {[%emt 0:04:48]} 19. h4 {[%emt 0:03:50]} Rxd1 {[%emt 0:06:45]} 20. Rxd1 {[%emt 0:01:56]} Rc8 {[%emt 0:00:19]} 21. Bd4 {[%emt 0:08:47]} b5 {[%emt 0:04:12]} 22. Ne3 {[%emt 0:01:29]} a6 $1 {[%emt 0:01:02]} 23. Bb2 {[%emt 0:03:38]} Nd7 {[%emt 0:05:51]} 24. Ba3 {[%emt 0:04:24]} Nb6 {[%emt 0:02:08]} 25. Bb4 {[%emt 0:00:40]} Bc3 {[%emt 0:08:08]} 26. Bxc3 {[%emt 0:02:39]} Rxc3 {[%emt 0:00:02]} 27. Rd8+ {[%emt 0:00:25]} Kh7 {[%emt 0:00:20]} (27... Kg7 {feels hotter.} 28. Qd2 Qf6 29. f4 Rc6) 28. Qd2 {[%emt 0:01:00]} Rc8 {[%emt 0:03:13]} 29. Kf2 {[%emt 0:04:43]} Rxd8 {[%emt 0:01:57]} 30. Qxd8 {[%emt 0:00:13]} Kg7 {[%emt 0:04:29]} 31. Nc2 {[%emt 0:06:58]} Nd7 {[%emt 0:01:52]} 32. Qc7 {[%emt 0:00:24]} Nf6 {[%emt 0:04:06]} 33. Nd4 {[%emt 0:01:56]} Qh3 {[%emt 0:02:47]} (33... Qd7 {simplifies} 34. Qxd7 Nxd7 35. Nc6 e5) 34. Ne2 {[%emt 0:01:29]} Qd7 {[%emt 0:04:30]} 35. Qxd7 {[%emt 0:02:44]} Nxd7 {[%emt 0:00:01]} 36. Nf4 {[%emt 0:00:15]} e6 {[%emt 0:01:29]} 37. Ke3 {[%emt 0:01:09]} Kf6 {[%emt 0:00:48]} 38. Nd3 {[%emt 0:00:11]} e5 {[%emt 0:03:44]} 39. Nb4 {[%emt 0:00:16]} Nb8 {[%emt 0:00:22]} (39... Nc5 $11 {keeps the balance.}) 40. Nd5+ {[%emt 0:01:25]} Ke6 {[%emt 0:00:03]} 41. g4 $1 {[%emt 0:00:09]} f5 $2 {[%emt 0:01:44]} (41... f6 $16) 42. gxf5+ $2 {[%emt 0:01:27]} (42. Nc7+ $1 $18 Kf6 43. exf5) 42... gxf5 $14 {[%emt 0:00:02]} 43. f4 {[%emt 0:00:27]} exf4+ $2 {[%emt 0:02:47][%mdl 8192]} (43... Nc6 $14) 44. Kxf4 $18 {[%emt 0:01:03]} ({Less strong is} 44. Nxf4+ Ke5 45. Nd3+ (45. Nxh5 Nc6 $16) (45. exf5 Kxf5 46. Nxh5 Kg4 $16) 45... Kf6 46. e5+ Kf7 $18) 44... fxe4 {[%emt 0:00:25]} 45. Kxe4 {[%emt 0:00:02]} Nc6 $2 {[%emt 0:00:29] [#]} (45... Kf7 46. Kd4 Nc6+ 47. Kc5 Ne5) 46. Nc7+ $1 $18 {[%emt 0:01:02]} Kd6 {[%emt 0:00:13]} 47. Nxa6 {[%emt 0:00:20]} Ne5 {[%emt 0:00:10] [#]} 48. Kf4 $1 {[%emt 0:00:41]} (48. Nc7 Ng6 49. Nd5 (49. Nxb5+ Kc5 $11) 49... Nxh4 $16) 48... Nd3+ {[%emt 0:01:13]} 49. Kg5 {[%emt 0:00:22]} Nc1 {[%emt 0:00:35]} 50. Kxh5 {[%emt 0:01:16]} Nxa2 {[%emt 0:00:05]} 51. Kg6 {[%emt 0:00:04]} 1-0

[Event "III Menorca Open-A 2024"]
[Site "Ciutadella Menorca"]
[Date "2024.04.04"]
[Round "4.14"]
[White "Chigaev, Maksim"]
[Black "Macias Pino, Diego"]
[Result "1-0"]
[ECO "A09"]
[WhiteElo "2617"]
[BlackElo "2478"]
[Annotator "TA"]
[PlyCount "45"]
[EventDate "2024.04.02"]
[EventType "swiss"]
[EventCountry "ESP"]
[SourceTitle "playchess.com"]
[Source "ChessBase"]
[SourceQuality "1"]
[TimeControl "5400+30"]

{[%evp 9,45,33,32,13,18,25,22,27,52,45,84,90,95,95,103,81,103,97,85,66,137,139,154,155,154,143,286,290,297,291,261,288,287,291,298,289,322,315]} 1. Nf3 {[%emt 0:03:09]} d5 {[%emt 0:00:11]} 2. e3 {[%emt 0:00:07]} Nf6 {[%emt 0:01:10]} 3. c4 {[%emt 0:00:09]} dxc4 {[%emt 0:04:05]} 4. Bxc4 {[%emt 0:00:10]} e6 {[%emt 0:00:52]} 5. O-O {[%emt 0:00:34]} a6 {[%emt 0:00:43]} 6. b3 {[%emt 0:00:47]} Be7 {[%emt 0:04:54]} 7. Bb2 {[%emt 0:00:12]} c5 {[%emt 0:01:28]} 8. d4 {[%emt 0:00:22] The position is equal.} Nc6 {[%emt 0:03:58]} 9. dxc5 {[%emt 0:08:16]} Bxc5 {[%emt 0:00:11]} 10. Qxd8+ {[%emt 0:01:27]} Kxd8 {[%emt 0:00:10]} 11. Be2 {[%emt 0:03:21]} Ke7 {[%emt 0:06:25]} 12. Nbd2 {[%emt 0:14:27]} b6 {[%emt 0:03:21][%cal Bb7b6,Bb6c5,Bc5b4][%mdl 32]} 13. Ng5 {[%emt 0:04:04]} Bb7 {[%emt 0:17:56]} 14. Nge4 {[%emt 0:03:52] White is more active.} (14. Nde4 {looks sharper.} Nb4 15. Nxc5 bxc5 16. Rfc1) 14... Nxe4 {[%emt 0:01:42]} (14... Rhd8 $14) 15. Nxe4 $16 {[%emt 0:00:49]} Nb4 {[%emt 0:00:16]} 16. Nxc5 {[%emt 0:01:16]} bxc5 {[%emt 0:00:01]} 17. a3 {[%emt 0:07:25][%cal Ba2a3,Ba3b4][%mdl 32]} (17. Bxg7 $2 Rhg8 18. g3 Rxg7 $19) 17... Rhd8 {[%emt 0:04:06]} (17... Nd5 $16 {keeps fighting.} 18. Rfc1 (18. Bxg7 Rhg8 $17) 18... Rhc8 19. Bxg7 a5) 18. axb4 $18 {[%emt 0:02:33] White has a decisive advantage.} Rd2 {[%emt 0:00:21] [#]} 19. Bf3 $1 {[%emt 0:00:09]} (19. Bxg7 Rxe2 20. Rfc1 (20. bxc5 Rg8 $16) 20... Rg8 21. Rxc5 Rxg7 22. Rc7+ Kf6 23. Rxb7 Rg5 $11) 19... Bxf3 {[%emt 0:00:15] [#]} 20. Bc1 {[%emt 0:00:06]} ({Stronger than} 20. Bxg7 Rg8 21. gxf3 Rxg7+ 22. Kh1 cxb4 23. Rxa6 Rb2 $11) ({Weaker is} 20. gxf3 Rxb2 21. bxc5 Rxb3 $11) 20... Rd3 {[%emt 0:00:07]} 21. gxf3 {[%emt 0:00:08]} cxb4 {[%emt 0:00:05]} 22. Rb1 {[%emt 0:05:29]} e5 {[%emt 0:01:26]} 23. e4 {[%emt 0:01:42] Weighted Error Value: White=0.05 (flawless) /Black=0.26 (precise) .  Mistake:       	---       	Black=2      Inaccurate:     	---       	Black=1      OK:         	White=8     	Black=4      Best:        	White=2     	Black=1      Strong:       	White=1     	---} 1-0

[Event "III Menorca Open-A 2024"]
[Site "Ciutadella Menorca"]
[Date "2024.04.04"]
[Round "4.15"]
[White "Castellanos Rodriguez, Renier"]
[Black "Karthik Venkataraman"]
[Result "1/2-1/2"]
[ECO "B90"]
[WhiteElo "2467"]
[BlackElo "2609"]
[Annotator "TA"]
[PlyCount "106"]
[EventDate "2024.04.02"]
[EventType "swiss"]
[EventCountry "ESP"]
[SourceTitle "playchess.com"]
[Source "ChessBase"]
[SourceQuality "1"]
[TimeControl "5400+30"]

{[%evp 32,106,0,0,0,0,0,0,0,0,0,-18,-18,-28,-14,-14,-29,-21,-19,-191,-195,-170,0,-46,-57,-171,0,0,0,0,0,0,0,-75,-50,-120,-134,-110,-129,-147,-124,-130,-134,-147,-133,-141,-77,-143,-138,-142,-133,-141,0,-146,-138,-215,-149,-172,0,-195,-69,-75,0,0,0,-66,0,0,0,0,0,0,0,0,0,0,0]} 1. e4 {[%emt 0:00:03]} c5 {[%emt 0:06:02]} 2. Nf3 {[%emt 0:00:34]} d6 {[%emt 0:00:04]} 3. d4 {[%emt 0:00:16]} cxd4 {[%emt 0:00:04]} 4. Nxd4 {[%emt 0:00:03]} Nf6 {[%emt 0:00:05]} 5. Nc3 {[%emt 0:00:07]} a6 {[%emt 0:00:04]} 6. Be3 {[%emt 0:02:33]} e5 {[%emt 0:00:06]} 7. Nb3 {[%emt 0:00:05]} Be6 {[%emt 0:00:06]} 8. Qd2 {[%emt 0:02:18]} Be7 {[%emt 0:01:14]} 9. f3 {[%emt 0:01:14]} O-O {[%emt 0:01:42]} 10. O-O-O {[%emt 0:00:09]} Nbd7 {[%emt 0:00:05]} 11. g4 {[%emt 0:00:19]} b5 {[%emt 0:00:07]} 12. Rg1 {[%emt 0:03:05] B90: Sicilian Najdorf: Unusual White 6th moves, 6 Be3 Ng4 and 6 Be3 e5.} Nb6 {[%emt 0:02:18]} 13. g5 {[%emt 0:01:11]} Nh5 {[%emt 0:03:36]} 14. Na5 {[%emt 0:03:22]} Rc8 {[%emt 0:05:14]} 15. Nd5 {[%emt 0:05:41]} Nxd5 {[%emt 0:00:36]} 16. exd5 {[%emt 0:00:04]} Bxd5 {[%emt 0:05:57]} 17. Qxd5 {[%emt 0:00:28]} Qxa5 {[%emt 0:00:05]} 18. Bd3 {[%emt 0:01:04]} g6 {[%emt 0:00:03]} 19. h4 $146 {[%emt 0:05:57]} ({Predecessor:} 19. Kb1 Qc7 20. Rg4 Kh8 21. a4 f5 22. Rb4 f4 23. Bf2 Bxg5 24. axb5 axb5 25. Rxb5 Nf6 26. Qb3 Rb8 27. c4 Bh6 28. h4 Bg7 {½-½ Zilka,S (2602)-Nayhebaver,M (2517) SVK-chT 2223 2022 (4.1)}) 19... Rfe8 {[%emt 0:03:37]} 20. Rg4 {[%emt 0:06:30]} Bf8 {[%emt 0:26:02]} 21. Qb3 {[%emt 0:21:36]} d5 {[%emt 0:04:18]} 22. Qxd5 {[%emt 0:01:47]} Red8 {[%emt 0:00:05]} 23. Qb3 {[%emt 0:00:37]} Bc5 {[%emt 0:00:08]} 24. Bd2 {[%emt 0:03:26]} Qc7 {[%emt 0:00:09]} 25. Re4 $2 {[%emt 0:02:11]} (25. Kb1 $11 {and White is okay.}) 25... Ng3 $19 {[%emt 0:05:13]} 26. Rg4 {[%emt 0:00:24]} Nh5 {[%emt 0:00:03]} (26... Bf2 $19 {And now ...Qb7 would win.} 27. Kb1 Qc6) 27. Re4 $15 {[%emt 0:00:29]} Bf2 {[%emt 0:01:16]} 28. Kb1 {[%emt 0:05:14]} (28. Be1 $15 Bxe1 29. Rexe1) 28... Rd4 $2 {[%emt 0:02:34]} (28... Ng3 $19 29. Rb4 Qc6) 29. Rxd4 $11 {[%emt 0:00:48]} exd4 {[%emt 0:00:05]} 30. a4 {[%emt 0:00:28]} Rb8 {[%emt 0:01:35]} 31. axb5 {[%emt 0:11:25]} axb5 {[%emt 0:00:09]} 32. Be4 {[%emt 0:00:06]} ({Don't play} 32. Bxb5 Qe5 (32... Bxh4 33. Qd5 $11) 33. c4 Nf4 $15 (33... Bxh4 34. Qd3 $11) (33... dxc3 34. Bxc3 Qf5+ 35. Qc2 $14)) (32. Rf1 $11 {keeps the balance.} Be3 33. Bb4) 32... Bxh4 $17 {[%emt 0:04:12]} 33. Qd5 {[%emt 0:01:27] [#]} (33. Bd5 $15) 33... Nf4 $1 $17 {[%emt 0:05:40]} 34. Bxf4 {[%emt 0:06:51]} Qxf4 {[%emt 0:00:07]} 35. Rg1 {[%emt 0:01:17]} Qe3 {[%emt 0:02:38]} 36. Rg4 {[%emt 0:03:39]} Bg3 {[%emt 0:05:53]} 37. Ka2 {[%emt 0:01:48]} Bf4 {[%emt 0:00:02]} 38. Bd3 {[%emt 0:02:00]} Qd2 {[%emt 0:11:03]} (38... Re8 $142 39. Bxb5 Re7) 39. Be4 {[%emt 0:02:32]} (39. Qxd4 $142 Bxg5 40. Qe5 Ra8+ 41. Kb3) 39... Qa5+ $17 {[%emt 0:03:27]} 40. Kb1 {[%emt 0:00:05]} Qe1+ {[%emt 0:00:05]} 41. Ka2 {[%emt 0:00:04]} Qa5+ {[%emt 0:00:02]} 42. Kb1 {[%emt 0:00:06]} Rd8 {[%emt 0:00:03]} 43. Qc6 {[%emt 0:02:32]} (43. Qb7 $17 {keeps fighting.}) 43... Qe1+ {[%emt 0:01:40]} 44. Ka2 {[%emt 0:00:04]} Qa5+ {[%emt 0:00:02]} 45. Kb1 {[%emt 0:00:04]} Be3 {[%emt 0:00:39]} (45... Qd2 $19 {Hoping for ...d3.} 46. Rg1 Qe3 (46... Bxg5 $2 47. Qxb5 Bf6 48. Rh1 $19)) 46. Bd5 $1 $15 {[%emt 0:01:07] [#]} Qe1+ {[%emt 0:03:10]} (46... Qa7 $1 $17 47. Qxb5 Rb8) 47. Ka2 $11 {[%emt 0:00:02]} Qa5+ {[%emt 0:00:01]} ({Better is} 47... Rf8 $11) 48. Kb1 $15 {[%emt 0:00:07]} Rf8 {[%emt 0:00:20]} (48... Qa7 $1 $15 49. Qxb5 Rb8) 49. Bxf7+ $11 {[%emt 0:03:16]} Rxf7 {[%emt 0:00:01]} 50. Qe8+ {[%emt 0:00:06]} Rf8 {[%emt 0:00:01]} 51. Qe6+ {[%emt 0:00:07]} Rf7 {[%emt 0:00:02]} 52. Qe8+ {[%emt 0:00:06]} Kg7 {[%emt 0:00:04]} 53. Qe5+ {[%emt 0:00:05]} Kg8 {[%emt 0:05:06]} 1/2-1/2